bitfinex/quotes_SOLUSD_20260223
["timestamp","ask_amount","ask_price","bid_price","bid_amount"]
[1771816108775,2.48236492,78.319,78.28,8.36377156]
[1771816109270,2.48236492,78.319,78.28,8.36500691]
[1771816109875,2.48236492,78.319,78.29,8.36500691]
[1771816110181,2.48236492,78.319,78.3,8.36500691]
[1771816110366,2.48236492,78.319,78.29,8.36500691]
[1771816111078,2.48236492,78.317,78.29,8.36500691]
[1771816111965,2.48236492,78.317,78.27,0.2]
[1771816111966,12.76503401,78.339,78.3,8.36500691]
[1771816112381,76.82,78.383,78.3,8.36500691]
[1771816112382,51.02713786,78.39,78.32,8.36500691]
[1771816112561,51.02713786,78.39,78.3,8.36500691]
[1771816112562,8.36500691,78.34,78.3,8.36500691]
[1771816113075,8.36500691,78.34,78.31,8.36500691]
[1771816113659,8.36500691,78.35,78.31,8.36500691]
[1771816113875,8.36500691,78.35,78.312,2.33443603]
[1771816114184,2.35951682,78.349,78.312,2.33443603]
[1771816115161,2.35951682,78.349,78.311,12.76959814]
[1771816115780,2.35951682,78.347,78.311,12.76959814]
[1771816116365,2.35951682,78.347,78.31,8.36500691]
[1771816117981,2.35951682,78.345,78.295,2.33443603]
[1771816118283,2.35951682,78.345,78.27,0.2]
[1771816118284,2.35951682,78.329,78.3,8.36500691]
[1771816118785,2.35951682,78.329,78.291,2.33388701]
[1771816119765,2.37869216,78.319,78.29,8.36500691]
[1771816120168,8.36500691,78.32,78.29,8.36500691]
[1771816120169,12.7684568,78.318,78.29,8.36500691]
[1771816120367,12.7684568,78.318,78.271,2.33388701]
[1771816120368,2.37869216,78.309,78.271,2.33388701]
[1771816120683,2.37869216,78.309,78.28,8.36500691]
[1771816122281,2.37869216,78.308,78.28,8.36500691]
[1771816123483,15.1487795,78.308,78.281,12.77449189]
[1771816123688,2.37869216,78.307,78.281,12.77449189]
[1771816124989,2.37869216,78.307,78.273,2.33388701]
[1771816125195,2.37869216,78.279,78.235,12.78185511]
[1771816125398,2.37869216,78.269,78.23,21.14767197]
[1771816125605,2.37869216,78.259,78.23,8.36500691]
[1771816125894,2.37869216,78.259,78.225,12.78348817]
[1771816126068,2.37869216,78.259,78.226,2.33388701]
[1771816126272,2.37869216,78.259,78.23,8.36500691]
[1771816126892,2.37869216,78.259,78.226,2.33388701]
[1771816127294,2.37869216,78.239,78.211,12.78584385]
[1771816127477,2.37869216,78.249,78.221,2.33388701]
[1771816127674,10.69500519,78.294,78.23,20.95137358]
[1771816127675,2.37869216,78.259,78.23,20.95137358]
[1771816128188,2.37869216,78.259,78.229,2.33388701]
[1771816128393,2.37869216,78.257,78.229,2.33388701]
[1771816129495,2.37869216,78.257,78.231,2.33388701]
[1771816129699,2.37869216,78.265,78.24,20.95137358]
[1771816131104,2.37869216,78.265,78.239,2.33388701]
[1771816131105,2.37869216,78.265,78.25,20.95137358]
[1771816131406,2.37869216,78.265,78.239,2.33388701]
[1771816131407,2.37869216,78.265,78.24,20.95137358]
[1771816132902,2.37869216,78.265,78.24,33.73255967]
[1771816133285,2.37869216,78.265,78.24,36.06644668]
[1771816133483,2.37869216,78.265,78.24,33.73255967]
[1771816134798,2.37869216,78.265,78.24,20.95137358]
[1771816137205,2.37869216,78.272,78.25,20.95137358]
[1771816137381,2.37869216,78.272,78.241,2.33388701]
[1771816138483,2.37869216,78.27,78.241,2.33388701]
[1771816139182,2.37869216,78.27,78.24,20.95137358]
[1771816139802,2.37869216,78.259,78.23,20.95137358]
[1771816140694,2.37869216,78.257,78.23,20.95137358]
[1771816140883,2.37869216,78.257,78.223,12.78387728]
[1771816141083,2.37869216,78.249,78.21,21.15137358]
[1771816141278,12.77824631,78.258,78.21,21.15137358]
[1771816141279,2.37869216,78.239,78.21,21.15137358]
[1771816141494,12.77824631,78.258,78.22,23.28526059]
[1771816141495,2.37869216,78.246,78.22,23.28526059]
[1771816141890,2.37869216,78.246,78.22,20.95137358]
[1771816142692,2.37869216,78.246,78.23,20.95137358]
[1771816142892,2.37869216,78.246,78.221,2.33388701]
[1771816144591,63.87382336,78.28,78.241,2.33388701]
[1771816144592,2.37869216,78.267,78.241,2.33388701]
[1771816144795,2.37869216,78.267,78.25,20.95137358]
[1771816146708,2.37869216,78.28,78.25,20.95137358]
[1771816147315,2.37869216,78.28,78.25,8.37307742]
[1771816148603,2.37869216,78.28,78.251,12.7793894]
[1771816149107,3.69383402,78.295,78.261,2.29469083]
[1771816149108,15.15180176,78.286,78.261,2.29469083]
[1771816149283,2.3781104,78.286,78.27,8.37307742]
[1771816149488,2.3781104,78.284,78.26,8.37307742]
[1771816149697,2.3781104,78.279,78.246,12.78005379]
[1771816149987,2.3781104,78.279,78.24,8.37307742]
[1771816150207,2.3781104,78.279,78.241,12.78102273]
[1771816151206,2.3781104,78.269,78.232,12.78249309]
[1771816153903,2.3781104,78.283,78.251,2.29469083]
[1771816154108,8.37307742,78.28,78.24,8.37307742]
[1771816154306,2.3781104,78.279,78.24,8.37307742]
[1771816154501,2.3781104,78.269,78.24,8.37307742]
[1771816155514,12.77657121,78.269,78.24,21.15413795]
[1771816155707,2.3781104,78.268,78.24,21.15413795]
[1771816156813,2.3781104,78.268,78.235,2.1820374]
[1771816157112,2.20424904,78.266,78.24,8.37307742]
[1771816158503,2.20424904,78.271,78.241,2.1820374]
[1771816158915,2.20424904,78.269,78.241,2.1820374]
[1771816159217,2.20424904,78.269,78.242,12.78085938]
[1771816160116,2.20424904,78.267,78.24,8.37307742]
[1771816160422,2.20424904,78.267,78.234,12.78212561]
[1771816160604,2.20424904,78.267,78.241,2.1820374]
[1771816160917,2.20424904,78.267,78.235,2.1820374]
[1771816161414,2.20424904,78.267,78.24,10.55511482]
[1771816162312,2.20424904,78.267,78.241,2.1820374]
[1771816162519,12.77694017,78.266,78.241,2.1820374]
[1771816162715,2.20424904,78.265,78.241,2.1820374]
[1771816163421,2.20424904,78.265,78.241,14.96306013]
[1771816167516,2.20424904,78.265,78.242,2.1820374]
[1771816169718,2.20424904,78.265,78.243,12.78069603]
[1771816170019,2.20424904,78.265,78.244,2.1820374]
[1771816172216,2.20424904,78.274,78.246,2.1820374]
[1771816172411,2.20424904,78.291,78.26,8.37452239]
[1771816172636,2.20424904,78.291,78.261,2.1820374]
[1771816174729,2.20424904,78.291,78.27,8.37452239]
[1771816174924,12.77302337,78.29,78.271,2.1820374]
[1771816175126,2.20424904,78.289,78.27,8.37452239]
[1771816175428,2.20424904,78.289,78.26,8.37452239]
[1771816175725,2.20424904,78.289,78.251,2.1820374]
[1771816177326,2.20424904,78.287,78.261,2.1820374]
[1771816177629,2.20424904,78.293,78.27,10.55655979]
[1771816178015,2.20424904,78.289,78.253,2.1820374]
[1771816178332,2.20424904,78.289,78.253,2.35058396]
[1771816179014,2.20424904,78.289,78.26,8.37452239]
[1771816179416,2.27920783,78.287,78.242,2.35058396]
[1771816179620,2.27920783,78.287,78.251,2.35058396]
[1771816180515,12.773676,78.286,78.251,2.35058396]
[1771816180716,2.27920783,78.285,78.251,2.35058396]
[1771816180917,2.27920783,78.279,78.244,12.78037319]
[1771816181321,2.27920783,78.279,78.245,2.35058396]
[1771816181527,2.27920783,78.279,78.25,8.37452239]
[1771816183030,2.27920783,78.277,78.25,8.37452239]
[1771816184134,2.27920783,78.277,78.25,10.72510635]
[1771816184435,2.27920783,78.277,78.252,2.35058396]
[1771816185234,2.27920783,78.277,78.253,15.12964674]
[1771816185530,31.93018675,78.296,78.261,2.35058396]
[1771816185531,2.27920783,78.284,78.261,2.35058396]
[1771816186537,2.27920783,78.282,78.261,2.35058396]
[1771816187029,2.27920783,78.282,78.261,15.12829297]
[1771816190329,2.27920783,78.279,78.223,2.35058396]
[1771816190530,2.27920783,78.279,78.26,10.72510635]
[1771816191138,2.27920783,78.279,78.223,2.35058396]
[1771816191332,2.27920783,78.279,78.25,8.37452239]
[1771816191840,2.27920783,78.279,78.251,2.35058396]
[1771816192336,12.77498147,78.278,78.26,8.37452239]
[1771816192544,2.27920783,78.284,78.26,8.37452239]
[1771816192738,2.27920783,78.284,78.25,8.37452239]
[1771816193040,2.27920783,78.279,78.242,2.35058396]
[1771816193238,2.27920783,78.279,78.251,2.35058396]
[1771816193537,2.27920783,78.279,78.26,8.37452239]
[1771816193742,2.27920783,78.279,78.251,2.35058396]
[1771816194743,2.27920783,78.277,78.24,8.37452239]
[1771816195042,2.27920783,78.277,78.241,2.35058396]
[1771816195240,44.71243516,78.278,78.217,2.35058396]
[1771816195241,2.27920783,78.259,78.217,2.35058396]
[1771816195427,2.27920783,78.249,78.211,2.35058396]
[1771816195740,2.27920783,78.249,78.22,8.37452239]
[1771816196131,2.27920783,78.249,78.21,8.57452239]
[1771816196348,2.27920783,78.249,78.211,2.35058396]
[1771816196527,2.27920783,78.249,78.211,15.13650921]
[1771816196748,2.27920783,78.247,78.211,15.13650921]
[1771816196941,2.27920783,78.247,78.212,2.35058396]
[1771816197740,2.27920783,78.247,78.21,8.57452239]
[1771816198244,2.27920783,78.247,78.21,21.36057457]
[1771816198446,2.27920783,78.247,78.21,23.71115853]
[1771816198947,2.27920783,78.229,78.21,0.2]
[1771816200538,2.27920783,78.219,78.191,2.35058396]
[1771816200941,2.27920783,78.219,78.155,3.69383402]
[1771816200942,2.27920783,78.209,78.171,2.35058396]
[1771816201243,2.27920783,78.209,78.172,2.35058396]
[1771816201442,2.27920783,78.209,78.181,2.35058396]
[1771816203555,2.27920783,78.214,78.183,2.35058396]
[1771816205647,2.27920783,78.212,78.183,2.35058396]
[1771816207340,2.27920783,78.209,78.183,2.35058396]
[1771816207536,2.27920783,78.207,78.183,2.35058396]
[1771816208839,2.21697115,78.205,78.174,12.79181336]
[1771816209041,2.21697115,78.199,78.174,12.79181336]
[1771816209440,2.21697115,78.199,78.175,2.34376938]
[1771816210962,2.21697115,78.189,78.17,0.2]
[1771816211144,2.21697115,78.179,78.17,0.2]
[1771816211380,2.21697115,78.179,78.148,15.1399985]
[1771816211557,2.21697115,78.179,78.148,2.34376938]
[1771816211859,2.21697115,78.169,78.131,12.79901703]
[1771816212050,2.21697115,78.176,78.141,2.34376938]
[1771816213465,2.21697115,78.169,78.132,2.34376938]
[1771816213658,2.21697115,78.159,78.132,2.34376938]
[1771816214339,8.37452239,78.15,78.13,0.2]
[1771816214540,2.21697115,78.149,78.13,0.2]
[1771816215262,2.21697115,78.139,78.13,0.2]
[1771816215457,2.21697115,78.138,78.095,2.34376938]
[1771816215758,2.21697115,78.138,78.101,2.34376938]
[1771816215963,2.21697115,78.129,78.101,2.34376938]
[1771816216265,8.37452239,78.15,78.111,2.34376938]
[1771816217443,12.79606904,78.149,78.111,2.34376938]
[1771816218064,2.29903953,78.148,78.111,2.34376938]
[1771816219249,12.79515833,78.155,78.121,2.34108201]
[1771816219765,2.29903953,78.154,78.123,2.34108201]
[1771816219941,2.29903953,78.154,78.131,2.34108201]
[1771816220649,2.29903953,78.179,78.141,2.34108201]
[1771816220853,8.37452239,78.17,78.133,2.34108201]
[1771816221163,2.29903953,78.169,78.133,2.34108201]
[1771816221357,2.29903953,78.179,78.141,2.34108201]
[1771816221759,2.29903953,78.179,78.151,2.34108201]
[1771816222152,2.29903953,78.177,78.151,2.34108201]
[1771816222668,2.29903953,78.177,78.144,2.34108201]
[1771816223144,2.29903953,78.169,78.144,2.34108201]
[1771816223354,2.29903953,78.159,78.125,2.34108201]
[1771816223555,2.29903953,78.159,78.131,2.34108201]
[1771816223760,2.29903953,78.169,78.131,2.34108201]
[1771816225653,2.29903953,78.167,78.131,2.34108201]
[1771816226856,2.29903953,78.167,78.133,2.34108201]
[1771816227552,2.29903953,78.159,78.133,2.34108201]
[1771816228662,2.29903953,78.159,78.135,2.34108201]
[1771816230272,2.29903953,78.174,78.135,2.34108201]
[1771816230464,2.29903953,78.174,78.141,2.34108201]
[1771816230667,2.29903953,78.169,78.141,2.34108201]
[1771816230969,2.29903953,78.169,78.137,2.34108201]
[1771816231675,2.29903953,78.169,78.14,10.7156044]
[1771816231864,2.29903953,78.169,78.141,2.34108201]
[1771816232379,2.29903953,78.169,78.142,12.79721532]
[1771816232757,2.29903953,78.169,78.143,2.34108201]
[1771816233371,2.29903953,78.169,78.137,12.79794444]
[1771816233372,2.29903953,78.169,78.141,2.34108201]
[1771816235383,2.29903953,78.169,78.142,12.79721532]
[1771816235578,2.29903953,78.169,78.135,2.34108201]
[1771816235889,2.29903953,78.167,78.131,2.34108201]
[1771816237071,2.29903953,78.167,78.14,8.39704618]
[1771816237262,2.29903953,78.167,78.141,2.34108201]
[1771816240665,2.29903953,78.167,78.143,2.23610365]
[1771816249295,2.29903953,78.167,78.103,51.2138031]
[1771816249296,2.29903953,78.167,78.102,2.23610365]
[1771816249478,51.16652003,78.177,78.102,2.23610365]
[1771816249479,2.11611912,78.135,78.102,2.23610365]
[1771816249799,2.11611912,78.146,78.111,2.23610365]
[1771816250177,3.69383402,78.157,78.111,2.23610365]
[1771816250178,2.11611912,78.139,78.111,2.23610365]
[1771816250685,2.11611912,78.119,78.093,15.04122097]
[1771816251489,2.11611912,78.119,78.093,12.80511732]
[1771816251687,2.11611912,78.119,78.094,2.23610365]
[1771816251886,8.39704618,78.11,78.08,0.2]
[1771816252087,2.11611912,78.109,78.08,0.2]
[1771816253400,3.69383402,78.117,78.08,0.2]
[1771816253401,2.11611912,78.099,78.08,0.2]
[1771816254173,2.11611912,78.099,78.066,12.80967215]
[1771816254375,2.11611912,78.099,78.061,2.23610365]
[1771816254376,2.11611912,78.099,78.061,15.0464949]
[1771816254599,2.11611912,78.099,77.96,8.23045806]
[1771816254600,2.11611912,78.086,78.026,2.23610365]
[1771816254897,3.69383402,78.087,77.894,35.44055789]
[1771816254898,8.39704618,78.04,77.999,2.23610365]
[1771816255202,8.39704618,78.01,77.973,2.23610365]
[1771816255378,8.39704618,78.0,77.973,2.23610365]
[1771816255997,12.81525527,78.032,77.974,12.82478774]
[1771816256177,8.39704618,78.02,77.981,2.23610365]
[1771816256793,2.11611912,78.019,77.981,2.23610365]
[1771816256999,8.39704618,78.0,77.981,2.23610365]
[1771816257293,2.11611912,78.009,77.971,2.23610365]
[1771816257476,3.69383402,78.03,77.971,2.23610365]
[1771816257477,2.11611912,77.999,77.971,2.23610365]
[1771816257679,2.11611912,77.999,77.972,2.23610365]
[1771816257999,10.5131653,77.998,77.974,2.23610365]
[1771816259084,2.11611912,78.023,77.991,2.23610365]
[1771816259583,2.11611912,78.019,77.991,2.23610365]
[1771816260096,2.11611912,78.019,77.992,15.05793152]
[1771816260603,2.11611912,78.048,78.011,2.23610365]
[1771816261301,2.11611912,78.048,78.021,2.23610365]
[1771816261484,2.11611912,78.048,77.993,2.23610365]
[1771816261679,2.11611912,78.009,77.981,2.23610365]
[1771816262081,2.11611912,78.009,77.973,2.23610365]
[1771816262282,2.11611912,77.999,77.973,2.23610365]
[1771816262587,2.11611912,77.999,77.97,0.2]
[1771816263709,2.11611912,77.989,77.97,0.2]
[1771816264084,2.11611912,77.999,77.971,2.23610365]
[1771816264687,3.69383402,78.01,77.97,13.02531351]
[1771816264688,2.11611912,78.008,77.973,2.23610365]
[1771816264904,2.11611912,78.008,77.98,21.08269969]
[1771816265095,2.11611912,78.008,77.981,2.23610365]
[1771816265500,2.11611912,78.008,77.973,2.23610365]
[1771816266298,2.11611912,78.008,77.975,2.23610365]
[1771816268309,2.11611912,78.008,77.976,12.8244588]
[1771816268617,2.08534774,77.999,77.976,12.8244588]
[1771816269407,2.08534774,77.999,77.97,0.2]
[1771816269593,2.08534774,77.979,77.947,12.82923011]
[1771816269993,2.08534774,77.979,77.948,2.19940816]
[1771816271510,2.08534774,77.979,77.949,12.82890094]
[1771816272997,6.70617449,78.001,77.97,21.08269969]
[1771816273405,2.08534774,78.008,77.973,2.19940816]
[1771816273798,2.08534774,78.008,77.981,2.19940816]
[1771816274000,2.08534774,78.008,77.973,2.19940816]
[1771816274920,2.08534774,78.008,77.973,1.59680248]
[1771816275804,2.08534774,78.008,77.98,21.08269969]
[1771816276007,2.08534774,78.008,77.974,12.82478774]
[1771816276221,2.08534774,77.999,77.974,12.82478774]
[1771816276721,2.24083856,77.989,77.961,12.82692628]
[1771816276921,2.24083856,78.008,77.971,2.11718432]
[1771816277511,2.24083856,77.999,77.971,2.11718432]
[1771816277712,2.24083856,77.989,77.963,12.82659723]
[1771816277913,2.24083856,77.989,77.964,2.11718432]
[1771816278210,2.24083856,78.009,77.971,2.11718432]
[1771816279016,2.24083856,78.009,77.97,17.77643285]
[1771816279517,2.24083856,77.999,77.97,17.77643285]
[1771816279707,2.24083856,77.999,77.971,12.82528119]
[1771816281030,2.24083856,77.999,77.971,46.65259686]
[1771816281204,2.24083856,77.999,77.972,1.76411269]
[1771816281720,2.24083856,78.009,77.981,1.76999498]
[1771816282200,2.24083856,78.009,77.98,21.08269969]
[1771816283303,2.24083856,78.009,77.981,44.88272783]
[1771816285123,2.24083856,78.009,77.982,1.79279156]
[1771816285327,2.24083856,78.009,77.983,12.82330764]
[1771816287124,2.24083856,78.009,77.983,44.88157674]
[1771816288000,2.24083856,78.009,77.983,12.82330764]
[1771816288200,2.24083856,78.023,77.984,1.825725]
[1771816288406,2.24083856,78.037,78.0,21.08269969]
[1771816288711,2.24083856,78.036,78.0,21.08269969]
[1771816289021,2.24083856,78.044,78.011,1.8364516]
[1771816289320,2.24083856,78.044,78.012,12.81854073]
[1771816289706,2.24083856,78.044,78.013,1.847055]
[1771816290322,2.24083856,78.039,78.012,12.81854073]
[1771816290907,2.24083856,78.039,78.005,1.847055]
[1771816291124,2.24083856,78.019,77.991,12.82199228]
[1771816291319,3.69383402,78.037,77.982,12.82347208]
[1771816291320,2.24083856,78.009,77.982,12.82347208]
[1771816291522,2.24083856,78.009,77.975,44.88596216]
[1771816292322,2.24083856,78.009,77.976,1.86789782]
[1771816295428,2.24083856,78.009,77.977,12.82429434]
[1771816295621,2.24083856,77.999,77.963,33.97455093]
[1771816295807,2.24083856,77.999,77.965,1.90816617]
[1771816297321,2.24083856,77.999,77.964,12.82643271]
[1771816298034,2.24083856,77.999,77.965,1.92761321]
[1771816299631,2.24083856,77.999,77.97,21.08120566]
[1771816299823,2.24083856,77.999,77.971,1.95595413]
[1771816302015,2.24083856,77.999,77.972,12.8251167]
[1771816304230,2.24083856,77.999,77.97,1.99224601]
[1771816304532,2.24083856,77.999,77.971,1.99224601]
[1771816305052,2.27092336,77.997,77.949,2.00105995]
[1771816305330,12.82084156,77.998,77.951,2.00105995]
[1771816305331,2.27092336,77.979,77.951,2.00105995]
[1771816305519,2.27092336,77.989,77.961,2.00977266]
[1771816306435,2.27092336,77.989,77.962,12.82676175]
[1771816307834,2.27092336,77.989,77.962,14.85366075]
[1771816308021,2.27092336,77.989,77.963,2.026899]
[1771816308623,2.27092336,77.989,77.965,2.03531492]
[1771816309040,2.27092336,77.999,77.965,2.03531492]
[1771816311542,2.27092336,77.999,77.967,2.05998712]
[1771816313638,2.27092336,77.999,77.968,14.90174123]
[1771816313939,2.27092336,77.999,77.969,2.07596656]
[1771816314929,2.27092336,77.999,77.968,12.82577467]
[1771816316041,2.27092336,77.989,77.963,12.82651745]
[1771816318647,2.27092336,77.989,77.957,12.82758443]
[1771816318953,2.27092336,77.979,77.95,2.11433661]
[1771816322149,2.27092336,77.959,77.919,0.2415064]
[1771816322336,2.27092336,77.959,77.922,2.13631704]
[1771816322646,2.27092336,77.959,77.921,32.08373388]
[1771816322647,2.27092336,77.972,77.931,2.14347618]
[1771816322941,8.43667487,77.97,77.931,2.14347618]
[1771816323148,2.27092336,77.969,77.931,2.14347618]
[1771816324966,2.27092336,77.969,77.941,2.15754873]
[1771816328764,2.27092336,77.969,77.932,44.910948]
[1771816328765,8.43667487,77.99,77.951,2.19133992]
[1771816328936,2.35452123,77.989,77.951,2.19133992]
[1771816329137,2.35452123,77.979,77.951,2.19133992]
[1771816332541,2.35452123,77.979,77.952,12.82840722]
[1771816333345,2.35452123,77.977,77.944,2.21700215]
[1771816333541,2.35452123,77.969,77.944,2.21700215]
[1771816333741,2.35452123,77.985,77.941,2.22323455]
[1771816333940,2.35452123,77.989,77.95,8.43667487]
[1771816334165,2.35452123,77.989,77.945,2.22323455]
[1771816334359,8.43667487,77.98,77.945,2.22323455]
[1771816334571,2.35452123,77.979,77.947,2.22939537]
[1771816336854,2.35452123,77.979,77.949,2.24745647]
[1771816338268,2.35452123,77.979,77.95,8.43667487]
[1771816338470,2.35452123,77.979,77.951,2.25333908]
[1771816339867,0.2,99.819,77.961,2.26490235]
[1771816339868,2.47811669,77.992,77.961,2.26490235]
[1771816340071,51.2470562,78.054,77.971,2.26490235]
[1771816340072,2.47811669,78.006,77.971,2.26490235]
[1771816340656,2.47811669,77.999,77.971,2.26490235]
[1771816342475,2.47811669,77.999,77.972,12.8251167]
[1771816344571,2.47811669,77.999,77.972,2.29266825]
[1771816347466,2.47811669,77.999,77.973,12.82495222]
[1771816347673,2.47811669,77.999,77.97,8.43667487]
[1771816347674,12.82084156,77.998,77.97,2.30857405]
[1771816347970,2.47811669,77.997,77.97,2.30857405]
[1771816348153,2.47811669,77.979,77.952,12.82832849]
[1771816348752,2.47811669,77.979,77.953,2.31375465]
[1771816349772,2.47811669,77.979,77.954,12.82807809]
[1771816349979,2.47811669,77.979,77.955,2.31887576]
[1771816351775,2.47811669,77.99,77.962,12.82676175]
[1771816352079,2.47811669,77.989,77.962,12.82676175]
[1771816352253,2.47811669,77.989,77.963,2.32894217]
[1771816354167,2.47811669,77.989,77.964,12.82643271]
[1771816354469,2.47811669,77.989,77.965,2.33594974]
[1771816355967,2.47811669,77.989,77.967,2.33594974]
[1771816356175,2.47811669,78.002,77.971,2.33594974]
[1771816356554,2.47811669,77.999,77.971,2.33594974]
[1771816358169,2.47811669,77.999,77.972,12.8251167]
[1771816359174,2.43386583,78.029,77.991,2.36696059]
[1771816359374,2.43386583,78.019,77.98,8.4358944]
[1771816359579,2.43386583,78.009,77.981,2.37147057]
[1771816359775,44.84764613,78.042,77.991,2.37147057]
[1771816359776,2.43386583,78.022,77.991,2.37147057]
[1771816359974,2.43386583,78.022,78.01,8.4358944]
[1771816360170,2.43386583,78.028,78.01,8.4358944]
[1771816360367,2.43386583,78.028,78.003,2.37147057]
[1771816365762,2.43386583,78.027,77.99,8.4358944]
[1771816365971,2.43386583,78.009,77.972,2.39746321]
[1771816366165,2.43386583,77.999,77.97,8.4358944]
[1771816366761,2.43386583,78.017,77.981,2.40162283]
[1771816366962,2.43386583,78.017,77.991,2.40162283]
[1771816367380,2.43386583,78.017,77.99,8.4358944]
[1771816367873,2.43386583,78.015,77.98,8.4358944]
[1771816368583,2.43386583,78.009,77.972,15.23084334]
[1771816368969,2.43386583,78.009,77.98,8.4358944]
[1771816369378,12.81788351,78.016,77.991,2.40979931]
[1771816369566,2.43386583,78.015,77.991,2.40979931]
[1771816370477,2.43386583,78.013,77.991,2.40979931]
[1771816370778,2.43386583,78.013,77.99,8.4358944]
[1771816371873,2.43386583,78.013,77.986,12.82265108]
[1771816373264,2.43386583,78.013,77.99,8.4358944]
[1771816373668,2.43386583,78.013,77.987,2.42559626]
[1771816375383,2.43386583,78.013,77.99,8.4358944]
[1771816375967,2.43386583,78.013,77.988,12.82248551]
[1771816376584,2.43386583,78.013,77.988,2.44067986]
[1771816377088,12.81582946,78.029,78.001,2.48325654]
[1771816377969,102.4,78.048,77.981,44.88272783]
[1771816377970,8.4358944,78.05,78.011,2.48325654]
[1771816378164,8.4358944,78.04,78.011,2.48325654]
[1771816378975,2.43386583,78.037,78.011,2.48325654]
[1771816379175,2.43386583,78.037,78.005,12.81963321]
[1771816379778,2.43386583,78.037,78.005,15.30288975]
[1771816382497,2.43386583,78.035,78.006,2.48325654]
[1771816383393,2.47215037,99.624,78.006,2.48325654]
[1771816383583,2.43386583,78.053,78.021,2.48325654]
[1771816383773,2.43386583,78.057,78.03,8.4358944]
[1771816384005,2.43386583,78.064,78.04,8.4358944]
[1771816384193,2.43386583,78.064,78.041,2.48325654]
[1771816385078,2.43386583,78.074,78.041,2.48325654]
[1771816385384,2.43386583,78.074,78.043,2.48325654]
[1771816385686,2.43386583,78.073,78.043,2.48325654]
[1771816385888,2.43386583,78.069,78.043,2.48325654]
[1771816386078,12.80836129,78.074,78.043,2.48325654]
[1771816386683,15.24222712,78.074,78.045,2.48325654]
[1771816386993,2.43386583,78.073,78.045,2.48325654]
[1771816387390,2.43386583,78.073,78.04,8.4358944]
[1771816387589,2.43386583,78.069,78.032,2.48325654]
[1771816387896,2.43386583,78.076,78.041,2.48325654]
[1771816388194,2.43386583,78.075,78.041,2.48325654]
[1771816389371,2.40356883,78.073,78.043,2.41768767]
[1771816389575,2.40356883,78.069,78.043,2.41768767]
[1771816392800,15.21291452,78.068,78.043,2.41768767]
[1771816393595,15.21291452,78.068,78.05,8.4358944]
[1771816394883,2.40356883,78.068,78.05,10.85358207]
[1771816395080,2.40356883,78.079,78.051,2.41768767]
[1771816395389,2.40356883,78.078,78.051,12.81213565]
[1771816395591,2.40356883,78.078,78.052,2.41768767]
[1771816396296,0.1,78.08,78.061,2.41768767]
[1771816396485,2.40356883,78.086,78.07,8.4358944]
[1771816396809,0.1,78.09,78.07,8.4358944]
[1771816396986,0.1,78.09,78.07,10.83841047]
[1771816397389,0.1,78.09,78.071,2.40251607]
[1771816398589,2.54004401,78.09,78.064,2.40251607]
[1771816399031,2.54004401,78.09,78.065,15.21235402]
[1771816399206,2.54004401,78.09,78.066,2.40251607]
[1771816400698,2.54004401,78.09,78.067,12.80950978]
[1771816400900,2.54004401,78.09,78.068,2.40251607]
[1771816403104,2.54004401,78.09,78.069,15.21169769]
[1771816404093,2.54004401,78.09,78.07,8.4358944]
[1771816404686,2.54004401,78.09,78.07,10.83841047]
[1771816404898,0.1,78.09,78.073,2.40251607]
[1771816406804,2.44004401,78.088,78.057,2.40251607]
[1771816407013,2.44004401,78.088,78.061,2.40251607]
[1771816407390,2.44004401,78.088,78.051,2.40251607]
[1771816407813,2.44004401,78.088,78.061,2.40251607]
[1771816409102,2.44004401,78.088,78.062,12.81033025]
[1771816409309,2.44004401,78.088,78.063,2.40251607]
[1771816411210,2.44004401,78.088,78.064,12.81000204]
[1771816411508,2.44004401,78.088,78.064,15.21251811]
[1771816411810,0.1,78.09,78.023,103.3]
[1771816411811,2.44004401,78.079,78.041,2.40251607]
[1771816413294,2.44004401,78.049,78.019,2.40251607]
[1771816413500,2.44004401,78.039,78.006,2.40251607]
[1771816414808,2.44004401,78.029,78.001,2.40251607]
[1771816414990,2.44004401,78.029,78.001,15.22286452]
[1771816415724,2.3119686,78.029,78.002,2.40251607]
[1771816416213,2.3119686,78.029,78.001,12.82034845]
[1771816416399,12.81591223,78.028,77.995,2.40251607]
[1771816416922,12.81591223,78.028,77.997,2.40251607]
[1771816417490,2.44004401,78.027,77.997,2.40251607]
[1771816417696,8.41928579,78.03,77.997,2.40251607]
[1771816417697,2.44004401,78.025,77.997,2.40251607]
[1771816417911,2.44004401,78.039,78.001,2.40251607]
[1771816418110,2.44004401,78.049,78.021,2.40251607]
[1771816418298,2.44652088,78.059,78.031,2.49384893]
[1771816419909,2.44652088,78.089,78.051,2.49384893]
[1771816420111,2.44652088,78.088,78.061,2.49384893]
[1771816421813,2.44652088,78.086,78.061,2.49384893]
[1771816423208,2.44652088,78.086,78.053,2.49384893]
[1771816423893,12.80655695,78.085,78.053,2.49384893]
[1771816424093,2.44652088,78.079,78.053,2.49384893]
[1771816427622,2.44652088,78.079,78.06,10.91313472]
[1771816427938,12.80655695,78.085,78.061,2.49384893]
[1771816428229,15.25307783,78.085,78.061,2.49384893]
[1771816428437,2.44652088,78.084,78.061,2.49384893]